bitfinex/quotes_SOLUSD_20220208
["timestamp","ask_amount","ask_price","bid_price","bid_amount"]
[1644297954987,12.9308,118.34,118.27,52.93865911]
[1644297955188,0.25,118.34,118.27,52.93865911]
[1644297955488,13.88058333,118.35,118.27,52.93865911]
[1644297959310,14.13058333,118.35,118.27,52.93865911]
[1644297960608,13.88058333,118.35,118.27,52.93865911]
[1644297960810,1.20068333,118.35,118.28,12.17]
[1644297961008,25.200985,118.36,118.29,57.12530251]
[1644297961209,25.16558333,118.36,118.29,63.12530251]
[1644297963013,25.41558333,118.36,118.29,63.12530251]
[1644297964415,1.20068333,118.35,118.29,63.12530251]
[1644297966616,25.200985,118.36,118.29,63.12530251]
[1644297966816,25.16558333,118.36,118.29,63.12530251]
[1644297967017,1.20068333,118.35,118.29,57.12530251]
[1644297967215,1.20068333,118.35,118.29,63.12530251]
[1644297967417,1.20068333,118.35,118.29,57.12530251]
[1644297968018,1.20068333,118.35,118.29,63.12530251]
[1644297968417,1.45068333,118.35,118.29,63.12530251]
[1644297968619,1.20068333,118.35,118.29,63.12530251]
[1644297968819,1.45068333,118.35,118.29,63.12530251]
[1644297969019,1.20068333,118.35,118.29,63.12530251]
[1644297969220,1.20068333,118.34,118.29,50.44750251]
[1644297970121,1.20068333,118.34,118.29,44.44750251]
[1644297971020,1.20068333,118.34,118.29,50.44750251]
[1644297971721,13.88138333,118.34,118.29,50.44750251]
[1644297972522,1.20068333,118.33,118.29,50.44750251]
[1644297973122,1.20068333,118.33,118.29,44.44750251]
[1644297973825,1.45068333,118.33,118.29,44.44750251]
[1644297974023,1.20068333,118.34,118.29,63.12660251]
[1644297974423,1.45068333,118.34,118.29,63.12660251]
[1644297975223,36.67880167,118.36,118.29,63.12660251]
[1644297975423,2.40132001,118.37,118.29,63.37660251]
[1644297975624,0.03551741,118.37,118.3,24.3045]
[1644297975824,2.40132001,118.38,118.32,12.675]
[1644297976024,24.4045,118.41,118.33,42.0]
[1644297976226,4.81948056,118.4,118.34,43.1166562]
[1644297976624,2.40974028,118.43,118.34,61.5366562]
[1644297976824,2.40974028,118.43,118.34,85.4652562]
[1644297977225,4.81866804,118.44,118.34,85.4652562]
[1644297977826,15.07862776,118.44,118.36,47.13571984]
[1644297978025,12.6697,118.44,118.36,57.01271984]
[1644297978228,12.6697,118.44,118.36,63.26271984]
[1644297978931,2.10775549,118.45,118.38,12.6695]
[1644297978932,14.77665549,118.45,118.38,12.6695]
[1644297979128,14.77665549,118.45,118.39,46.5268671]
[1644297979328,14.77665549,118.45,118.39,58.2648671]
[1644297980130,43.4040565,118.44,118.39,58.2648671]
[1644297980330,56.0747565,118.44,118.39,46.5268671]
[1644297980528,58.18251199,118.44,118.39,46.5268671]
[1644297981128,58.18251199,118.44,118.36,30.7972]
[1644297981331,58.18251199,118.44,118.36,25.0472]
[1644297981531,58.18251199,118.44,118.35,23.456]
[1644297982131,14.77845549,118.44,118.35,23.456]
[1644297982331,14.77845549,118.44,118.35,36.3796]
[1644297982534,14.77845549,118.44,118.35,66.4771]
[1644297982535,39.48425549,118.44,118.35,66.4771]
[1644297983132,74.32686887,118.44,118.36,46.91492155]
[1644297983334,74.32686887,118.44,118.36,47.16492155]
[1644297983535,74.32686887,118.44,118.38,47.6500333]
[1644297984332,39.48425549,118.44,118.38,47.6500333]
[1644297984534,39.48425549,118.44,118.38,60.3202333]
[1644297988836,37.28180769,118.43,118.38,60.3202333]
[1644297989037,49.95330769,118.43,118.38,47.6500333]
[1644297989237,2.10775549,118.42,118.38,47.6500333]
[1644297989639,2.10775549,118.42,118.35,47.5535]
[1644297990140,2.10775549,118.42,118.35,53.5535]
[1644297990642,2.14329329,118.42,118.35,53.5535]
[1644297990839,14.81589329,118.42,118.36,12.6726]
[1644297991040,14.78035549,118.42,118.37,43.43334234]
[1644297994941,14.78035549,118.42,118.37,53.59334234]
[1644297995844,2.10775549,118.42,118.37,66.26494234]
[1644297996744,0.0355378,118.43,118.37,66.51494234]
[1644297996964,24.7058,118.44,118.39,12.6679]
[1644297997164,3.4037352,118.46,118.39,18.6679]
[1644297997364,3.4037352,118.46,118.39,31.0879]
[1644297997564,3.4037352,118.46,118.4,50.42547119]
[1644297997764,3.4037352,118.46,118.4,71.08188274]
[1644297997965,1.61695667,118.46,118.41,12.6622]
[1644297998265,2.40974028,118.52,118.42,12.17]
[1644297998470,4.80317199,118.55,118.42,13.90258845]
[1644297998666,2.40974028,118.55,118.42,20.15258845]
[1644297998865,39.74359122,118.54,118.44,43.19980569]
[1644297999066,39.74359122,118.54,118.44,73.93480569]
[1644297999266,39.74359122,118.54,118.44,74.18480569]
[1644297999766,39.74359122,118.54,118.46,48.36201573]
[1644298000167,41.85134671,118.54,118.46,48.36201573]
[1644298000367,44.26108699,118.54,118.46,48.36201573]
[1644298001373,38.136097,118.52,118.46,48.36201573]
[1644298001567,47.4711564,118.5,118.46,48.36201573]
[1644298001967,47.4711564,118.5,118.43,12.6631]
[1644298002867,47.4711564,118.5,118.44,46.87335008]
[1644298004070,47.4711564,118.5,118.44,52.87335008]
[1644298004467,12.6639,118.51,118.44,52.87335008]
[1644298004668,0.03560946,118.52,118.44,86.60825008]
[1644298005070,0.03560946,118.53,118.44,86.60825008]
[1644298005268,0.03560946,118.52,118.44,86.60825008]
[1644298005467,0.03560946,118.53,118.44,86.60825008]
[1644298011479,36.52158775,118.53,118.44,86.60825008]
[1644298012080,51.29084324,118.53,118.44,80.35825008]
[1644298013079,51.29084324,118.53,118.44,86.35825008]
[1644298014080,51.29084324,118.53,118.44,86.60825008]
[1644298015284,12.69710946,118.53,118.44,86.60825008]
[1644298015886,0.03560946,118.53,118.44,86.60825008]
[1644298016084,0.03560946,118.54,118.44,86.60825008]
[1644298018586,35.51170775,118.54,118.44,86.60825008]
[1644298018786,0.03560946,118.53,118.44,86.60825008]
[1644298020690,2.14336495,118.53,118.44,86.60825008]
[1644298021190,35.04399285,118.52,118.44,86.60825008]
[1644298021390,0.03560946,118.52,118.44,86.60825008]
[1644298021589,2.14336495,118.53,118.44,86.60825008]
[1644298021788,0.03560946,118.52,118.44,86.60825008]
[1644298021987,14.80446495,118.53,118.44,86.60825008]
[1644298022188,0.03560946,118.52,118.44,86.60825008]
[1644298022388,54.97802415,118.53,118.44,86.60825008]
[1644298024392,14.80446495,118.53,118.44,80.60825008]
[1644298024590,14.80446495,118.53,118.44,86.60825008]
[1644298026094,17.21420523,118.53,118.44,86.60825008]
[1644298026893,2.40542347,118.52,118.44,86.60825008]
[1644298027095,2.44103293,118.52,118.44,86.60825008]
[1644298027493,0.03560946,118.52,118.44,86.60825008]
[1644298027693,17.21420523,118.53,118.44,86.60825008]
[1644298030911,47.67164362,118.52,118.44,86.60825008]
[1644298031113,47.70725308,118.52,118.44,77.70625008]
[1644298031511,47.70725308,118.52,118.44,71.70625008]
[1644298032011,60.36905308,118.52,118.44,71.70625008]
[1644298032213,62.77879336,118.52,118.44,71.95625008]
[1644298032412,15.10714974,118.52,118.44,71.95625008]
[1644298032613,15.10714974,118.52,118.44,77.95625008]
[1644298034016,46.76612047,118.51,118.44,77.95625008]
[1644298034616,15.10714974,118.52,118.44,77.95625008]
[1644298034816,15.10714974,118.52,118.44,77.70625008]
[1644298035016,12.6641,118.5,118.44,59.53625008]
[1644298035617,14.77185549,118.5,118.44,59.53625008]
[1644298035917,12.6641,118.5,118.44,59.53625008]
[1644298038022,2.40974028,118.51,118.44,59.53625008]
[1644298038320,15.10764974,118.52,118.44,65.78625008]
[1644298038720,12.69790946,118.52,118.44,65.78625008]
[1644298042821,12.69790946,118.52,118.44,65.53625008]
[1644298046724,15.10764974,118.52,118.44,65.53625008]
[1644298049029,5.7205243,118.56,118.44,67.27937075]
[1644298049226,2.40821488,118.55,118.48,12.6584]
[1644298049428,2.40821488,118.58,118.48,37.3114]
[1644298049629,2.40821488,118.58,118.48,45.30452067]
[1644298049827,2.40821488,118.58,118.48,43.5614]
[1644298050228,36.66242488,118.58,118.49,46.5701864]
[1644298050427,36.66242488,118.58,118.5,12.6569]
[1644298050627,2.40821488,118.57,118.51,35.57776421]
[1644298051227,12.6575,118.57,118.51,35.57776421]
[1644298051829,42.1909,118.6,118.51,48.23426421]
[1644298052029,2.40353945,118.59,118.51,48.23426421]
[1644298052829,12.6557,118.58,118.51,48.23426421]
[1644298053030,49.80398146,118.58,118.51,48.23426421]
[1644298053433,49.80398146,118.58,118.51,54.23426421]
[1644298053632,49.80398146,118.58,118.51,48.23426421]
[1644298059241,12.6557,118.58,118.51,48.23426421]
[1644298059440,12.6546,118.59,118.51,55.96526421]
[1644298059641,23.3994,118.61,118.51,61.96526421]
[1644298060140,2.39755565,118.6,118.51,61.96526421]
[1644298060741,15.05145565,118.6,118.51,61.96526421]
[1644298060940,12.6539,118.6,118.51,85.27496421]
[1644298062843,12.6539,118.6,118.51,85.52496421]
[1644298066245,36.052,118.61,118.51,85.52496421]
[1644298066445,23.3994,118.61,118.52,12.17]
[1644298066645,23.3994,118.61,118.54,12.6513]
[1644298066845,23.3994,118.61,118.54,20.7193]
[1644298067046,23.3994,118.61,118.55,47.42165183]
[1644298067246,218.95098858,118.64,118.55,47.42165183]
[1644298067446,2.39518026,118.63,118.55,47.42165183]
[1644298067852,218.95098858,118.64,118.55,47.42165183]
[1644298068046,12.6517,118.62,118.55,84.03725183]
[1644298068951,59.29067827,118.62,118.55,84.03725183]
[1644298069147,12.6517,118.62,118.55,84.03725183]
[1644298069550,37.2709,118.63,118.55,84.03725183]
[1644298070149,84.18960818,118.63,118.55,84.03725183]
[1644298071750,84.18960818,118.63,118.55,84.28725183]
[1644298072350,37.2709,118.63,118.55,84.28725183]
[1644298072550,37.2709,118.63,118.55,96.41025183]
[1644298073253,34.25202189,118.62,118.55,96.41025183]
[1644298074254,46.90352189,118.62,118.55,96.41025183]
[1644298077155,46.90352189,118.62,118.55,94.41025183]
[1644298078556,46.90352189,118.62,118.55,94.16025183]
[1644298078758,46.90352189,118.62,118.55,57.54465183]
[1644298078962,46.90352189,118.62,118.55,45.42165183]
[1644298080675,49.01127738,118.62,118.55,45.42165183]
[1644298080879,49.01127738,118.62,118.55,44.42165183]
[1644298082780,49.01127738,118.62,118.53,24.5982]
[1644298082980,2.40022612,118.61,118.53,24.5982]
[1644298083181,12.6561,118.59,118.53,24.5982]
[1644298083680,57.31417273,118.59,118.53,70.58104498]
[1644298086282,12.6561,118.59,118.53,70.83104498]
[1644298086582,148.2653,118.64,118.53,76.83104498]
[1644298086781,2.40121312,118.63,118.53,87.61304498]
[1644298087182,45.66136603,118.63,118.53,87.61304498]
[1644298087383,65.84635291,118.63,118.55,36.98926804]
[1644298087582,12.6512,118.62,118.57,47.55738603]
[1644298090285,35.2366,118.63,118.57,47.55738603]
[1644298090488,52.85227964,118.67,118.57,70.57748603]
[1644298090687,69.33566881,118.67,118.58,23.8239]
[1644298090887,2.40114348,118.66,118.58,23.8239]
[1644298091090,0.14587275,118.66,118.59,1.73875768]
[1644298091286,3.61276881,118.73,118.59,14.15875768]
[1644298091486,16.23786881,118.75,118.62,12.6418]
[1644298091687,58.7987,118.76,118.63,12.17]
[1644298091887,3.61276881,118.77,118.63,60.181]
[1644298092089,3.61276881,118.77,118.63,66.431]
[1644298092290,11.92185534,118.79,118.64,1.73875768]
[1644298092488,41.84432306,118.76,118.65,12.17]
[1644298092688,41.84432306,118.76,118.66,34.5314582]
[1644298092888,41.84432306,118.76,118.67,12.17]
[1644298093188,41.84432306,118.76,118.68,37.9975947]
[1644298093389,11.92185534,118.79,118.68,46.8825947]
[1644298093590,188.07756356,118.8,118.68,53.1325947]
[1644298093788,113.32896356,118.8,118.68,65.3025947]
[1644298094190,125.2508189,118.8,118.68,65.3025947]
[1644298094390,36.20296294,118.79,118.68,65.3025947]
[1644298094590,36.20296294,118.79,118.68,77.9397947]
[1644298094792,48.12481828,118.79,118.68,59.5197947]
[1644298094989,48.12481828,118.79,118.68,46.8825947]
[1644298095490,42.62405903,118.75,118.68,46.8825947]
[1644298095691,42.62405903,118.75,118.68,8.885]
[1644298095892,42.62405903,118.75,118.66,23.0878]
[1644298096091,1.19086944,118.74,118.66,23.3378]
[1644298096291,1.19086944,118.74,118.66,23.0878]
[1644298096492,43.81492847,118.75,118.66,23.3378]
[1644298096790,43.81492847,118.75,118.67,36.69556011]
[1644298096992,42.62405903,118.75,118.67,36.69556011]
[1644298097193,42.62405903,118.75,118.67,36.94556011]
[1644298097395,42.62405903,118.75,118.67,36.69556011]
[1644298098699,42.62405903,118.75,118.67,49.58346011]
[1644298099095,42.62405903,118.75,118.67,49.33346011]
[1644298099296,42.62405903,118.75,118.67,36.69556011]
[1644298100798,55.26345903,118.75,118.67,36.69556011]
[1644298102200,55.26345903,118.75,118.67,36.94556011]
[1644298103301,55.26345903,118.75,118.66,35.7267]
[1644298103500,55.26345903,118.75,118.66,29.0878]
[1644298104100,56.45432847,118.75,118.66,29.0878]
[1644298104301,56.45432847,118.75,118.66,23.0878]
[1644298105201,56.45432847,118.75,118.64,12.6403]
[1644298105401,56.45432847,118.75,118.63,24.2036]
[1644298105624,1.19086944,118.74,118.63,24.4536]
[1644298105803,12.6433,118.72,118.63,23.4536]
[1644298106306,41.12437594,118.71,118.63,23.4536]
[1644298107109,41.12437594,118.71,118.64,40.75272467]
[1644298108307,41.12437594,118.71,118.63,23.2036]
[1644298108708,41.12437594,118.71,118.63,36.096]
[1644298109507,41.12437594,118.71,118.63,80.94186339]
[1644298110911,41.12437594,118.71,118.63,80.69186339]
[1644298111110,41.12437594,118.71,118.63,80.94186339]
[1644298111310,41.12437594,118.71,118.63,80.69186339]
[1644298111511,41.12437594,118.71,118.63,80.94186339]
[1644298111911,41.12437594,118.71,118.63,86.94186339]
[1644298112111,36.47236944,118.74,118.63,86.94186339]
[1644298112312,13.83206944,118.74,118.65,12.6395]
[1644298112510,12.6412,118.74,118.65,12.6395]
[1644298112714,12.6412,118.74,118.65,18.8895]
[1644298112912,12.6412,118.74,118.65,31.0595]
[1644298113132,48.63119755,118.74,118.66,37.99912533]
[1644298113312,48.63119755,118.74,118.66,48.42612533]
[1644298113512,48.63119755,118.74,118.66,48.17612533]
[1644298113811,48.63119755,118.74,118.66,48.42612533]
[1644298114812,48.63119755,118.74,118.66,61.06482533]
[1644298116414,49.82206699,118.74,118.66,61.06482533]
[1644298116914,49.82206699,118.74,118.66,50.88782533]
[1644298117114,49.82206699,118.74,118.66,56.88782533]
[1644298117414,48.59671342,118.72,118.66,50.88782533]
[1644298117817,48.59671342,118.72,118.66,0.25]
[1644298118014,49.78758286,118.72,118.66,0.25]
[1644298118215,49.78758286,118.72,118.64,41.8807]
[1644298118414,1.19086944,118.71,118.64,41.6307]
[1644298118614,1.19086944,118.71,118.64,35.6307]
[1644298118816,39.04986605,118.7,118.65,38.5722102]
[1644298119215,39.04986605,118.7,118.65,44.5722102]
[1644298119416,1.19086944,118.71,118.65,44.5722102]
[1644298119816,1.19086944,118.71,118.65,44.8222102]
[1644298120217,1.19086944,118.7,118.65,44.8222102]
[1644298120638,1.19086944,118.7,118.65,38.8222102]
[1644298125945,1.19086944,118.69,118.65,38.8222102]
[1644298127647,12.6421,118.72,118.65,38.8222102]
[1644298127648,1.19086944,118.7,118.65,38.8222102]
[1644298127847,1.19086944,118.7,118.65,51.4630102]
[1644298128449,1.19086944,118.69,118.65,51.4630102]
[1644298133053,1.19086944,118.69,118.65,51.2130102]
[1644298133355,1.19086944,118.7,118.65,51.4630102]
[1644298134655,37.99725766,118.69,118.65,12.6408]
[1644298134856,37.99725766,118.69,118.65,12.8908]
[1644298135860,39.1881271,118.69,118.65,12.8908]
[1644298136257,1.19086944,118.69,118.65,12.8908]
[1644298136657,1.19086944,118.69,118.65,12.6408]
[1644298136858,1.19086944,118.7,118.65,18.6408]
[1644298137058,1.19086944,118.7,118.65,12.6408]
[1644298137259,41.647967,118.7,118.65,12.8908]
[1644298138058,41.647967,118.7,118.65,18.8908]
[1644298139961,41.647967,118.7,118.65,12.8908]
[1644298140361,41.647967,118.7,118.65,18.8908]
[1644298141562,1.19086944,118.69,118.65,18.8908]
[1644298141762,40.45709756,118.7,118.65,18.8908]
[1644298142162,12.6414,118.72,118.66,38.73915928]
[1644298143162,39.41301373,118.71,118.66,38.73915928]
[1644298145164,12.6414,118.72,118.66,38.73915928]
[1644298145366,2.40262534,118.73,118.66,71.82745928]
[1644298145565,24.8824,118.75,118.67,1.73875589]
[1644298145566,27.28502534,118.75,118.67,1.73875589]
[1644298145764,24.8824,118.75,118.67,14.15875589]
[1644298145965,24.8824,118.75,118.67,43.76635589]
[1644298146167,70.49156779,118.75,118.68,46.64343504]
[1644298146364,70.49156779,118.75,118.68,46.89343504]
[1644298146565,70.49156779,118.75,118.68,52.89343504]
[1644298146768,70.49156779,118.75,118.69,12.636]
[1644298146968,70.49156779,118.75,118.7,36.40356268]
[1644298147167,2.40262534,118.76,118.7,42.40356268]
[1644298147467,38.28762534,118.77,118.7,42.40356268]
[1644298148166,86.45453966,118.77,118.7,41.90356268]
[1644298148367,2.10775549,118.76,118.7,35.90356268]
[1644298148566,12.6393,118.75,118.67,48.4162]
[1644298148770,12.6393,118.75,118.67,54.6662]
[1644298148967,2.10775549,118.74,118.67,54.6662]
[1644298149367,27.87068083,118.76,118.67,54.6662]
[1644298149567,25.46805549,118.76,118.68,47.04874902]
[1644298149768,12.6379,118.75,118.68,59.93634902]
[1644298149966,58.40717462,118.75,118.68,59.93634902]
[1644298153773,12.6379,118.75,118.68,59.93634902]
[1644298154793,58.63914615,118.75,118.68,59.93634902]
[1644298157398,58.63914615,118.75,118.68,65.93634902]
[1644298157599,58.63914615,118.75,118.68,59.93634902]
[1644298158098,58.63914615,118.75,118.68,12.8876]
[1644298158497,60.74690164,118.75,118.68,18.8876]
[1644298158699,60.74690164,118.75,118.68,12.8876]
[1644298159097,60.74690164,118.75,118.68,48.64810719]
[1644298159699,60.74690164,118.75,118.67,36.2471]
[1644298159900,60.74690164,118.75,118.67,23.6076]
[1644298160700,60.74690164,118.75,118.68,35.96664269]
[1644298161301,60.74690164,118.75,118.67,23.6076]
[1644298161501,60.74690164,118.75,118.67,23.8576]
[1644298161701,60.74690164,118.75,118.68,12.6387]
[1644298162500,60.74690164,118.75,118.67,67.31563178]
[1644298162902,63.14952698,118.75,118.67,67.31563178]
[1644298163602,61.04177149,118.75,118.67,67.31563178]
[1644298163802,58.63914615,118.75,118.67,79.95523178]
[1644298164202,58.63914615,118.75,118.67,80.20523178]
[1644298164402,58.13914615,118.75,118.67,80.20523178]
[1644298167705,60.54177149,118.75,118.67,80.20523178]
[1644298169009,62.64952698,118.75,118.67,80.20523178]
[1644298169909,62.64952698,118.75,118.67,36.2472]
[1644298170108,74.81952698,118.75,118.63,23.2036]
[1644298170309,25.49922534,118.74,118.64,23.1934]
[1644298170513,12.6442,118.71,118.6,23.8384]
[1644298170710,35.7408,118.71,118.61,23.1934]
[1644298170911,40.25367191,118.7,118.62,45.4946356]
[1644298171110,40.25367191,118.7,118.62,58.1397356]
[1644298171911,2.10775549,118.7,118.62,58.1397356]
[1644298172113,23.0966,118.71,118.62,58.1397356]
[1644298172713,12.6451,118.68,118.62,58.1397356]
[1644298174415,60.73166354,118.68,118.62,58.1397356]
[1644298175019,12.6451,118.68,118.62,58.1397356]
[1644298175216,12.6451,118.68,118.62,58.3897356]
[1644298175416,12.6429,118.69,118.62,58.3897356]
[1644298175616,23.0966,118.71,118.62,58.3897356]
[1644298175816,23.0966,118.71,118.63,24.6597]
[1644298176017,66.04083383,118.71,118.66,45.4946356]
[1644298176217,42.94423383,118.71,118.66,45.4946356]
[1644298176619,42.1437,118.72,118.66,45.4946356]
[1644298177020,12.6419,118.7,118.66,45.4946356]
[1644298177322,12.6419,118.7,118.65,12.6413]
[1644298177523,12.6419,118.7,118.64,12.643]
[1644298178421,26.76065549,118.7,118.61,24.1154]
[1644298178622,26.76065549,118.7,118.61,60.1893]
[1644298178921,12.6472,118.65,118.54,12.17]
[1644298179123,20.9452,118.65,118.55,48.1735]
[1644298179421,37.86134862,118.64,118.56,47.78813155]
[1644298179921,12.6496,118.63,118.56,47.78813155]
[1644298180123,34.46931536,118.62,118.56,47.78813155]
[1644298180522,46.12731536,118.62,118.56,47.78813155]
[1644298181521,11.658,118.62,118.56,47.78813155]
[1644298181722,12.6504,118.62,118.56,48.03813155]
[1644298181923,12.6504,118.62,118.56,47.78813155]
[1644298182123,12.6504,118.62,118.56,48.03813155]
[1644298182522,52.02224565,118.62,118.56,48.03813155]
[1644298183225,52.02224565,118.62,118.56,47.78813155]
[1644298183825,52.02224565,118.62,118.56,48.03813155]
[1644298184225,12.6504,118.62,118.56,48.03813155]
[1644298184426,12.6504,118.62,118.56,60.43813155]
[1644298184628,77.062,118.67,118.57,1.73441821]
[1644298184826,22.73,118.67,118.57,1.98441821]
[1644298185229,42.19820576,118.66,118.58,37.27143882]
[1644298185426,44.30596125,118.66,118.58,37.27143882]
[1644298185628,56.95216125,118.66,118.58,37.27143882]
[1644298185827,54.84440576,118.66,118.58,37.27143882]
[1644298186528,54.84440576,118.66,118.58,37.52143882]
[1644298186726,54.84440576,118.66,118.58,50.16913882]
[1644298187829,54.84440576,118.66,118.58,49.91913882]
[1644298188029,56.95216125,118.66,118.58,37.27143882]
[1644298188254,54.84440576,118.66,118.58,37.27143882]
[1644298188655,54.84440576,118.66,118.58,37.52143882]
[1644298188856,54.84440576,118.66,118.58,37.27143882]
[1644298189057,54.84440576,118.66,118.58,37.52143882]
[1644298189756,54.84440576,118.66,118.58,50.16943882]
[1644298190156,54.84440576,118.66,118.58,49.91943882]
[1644298190359,54.84440576,118.66,118.58,50.16943882]
[1644298190555,54.84440576,118.66,118.58,49.91943882]
[1644298190756,54.84440576,118.66,118.58,50.16943882]
[1644298191057,54.84440576,118.66,118.58,49.91943882]
[1644298191257,54.84440576,118.66,118.58,50.16943882]
[1644298191457,54.84440576,118.66,118.58,49.91943882]
[1644298191858,56.95216125,118.66,118.58,50.16943882]
[1644298192258,56.95216125,118.66,118.58,49.91943882]
[1644298192864,56.95216125,118.66,118.58,50.16943882]
[1644298194761,56.95216125,118.66,118.58,49.91943882]
[1644298195763,56.95216125,118.66,118.58,50.16943882]
[1644298197468,56.95216125,118.66,118.58,49.91943882]
[1644298198268,56.95216125,118.66,118.58,50.16943882]
[1644298199369,56.95216125,118.66,118.58,49.91943882]
[1644298199569,56.95216125,118.66,118.58,50.16943882]
[1644298199970,56.95216125,118.66,118.58,49.91943882]
[1644298200172,56.95216125,118.66,118.58,50.16943882]
[1644298200374,56.95216125,118.66,118.58,49.91943882]
[1644298200771,56.95216125,118.66,118.58,50.16943882]
[1644298201473,56.95216125,118.66,118.58,37.52143882]
[1644298202073,68.32816125,118.66,118.55,48.1735]
[1644298202274,24.8147,118.65,118.57,6.0]
[1644298202573,24.8147,118.65,118.55,48.1735]
[1644298202574,12.6519,118.63,118.55,48.1735]
[1644298202775,20.8259,118.63,118.55,48.1735]
[1644298202977,2.10775549,118.62,118.55,48.1735]
[1644298203176,39.07469363,118.62,118.56,36.55151652]
[1644298203474,12.6541,118.61,118.56,36.55151652]
[1644298203876,34.37821629,118.6,118.55,23.4277]
[1644298204074,12.6541,118.61,118.55,29.4277]
[1644298204675,12.6541,118.61,118.55,23.4277]
[1644298205074,37.40748693,118.6,118.55,23.6777]
[1644298205677,50.06028693,118.6,118.55,23.4277]
[1644298205878,50.06028693,118.6,118.53,59.52174281]
[1644298206077,50.06028693,118.6,118.53,59.77174281]
[1644298206476,50.06028693,118.6,118.53,12.9275]
[1644298206976,52.16804242,118.6,118.53,12.9275]
[1644298207180,50.06028693,118.6,118.53,12.9275]
[1644298207378,50.06028693,118.6,118.53,0.274]
[1644298207678,50.06028693,118.6,118.53,37.9531724]
[1644298207880,50.06028693,118.6,118.53,37.7031724]
[1644298208082,52.16804242,118.6,118.53,0.024]
[1644298208281,52.16804242,118.6,118.52,47.6387]
[1644298208480,52.16804242,118.6,118.52,60.2933]
[1644298208679,52.16804242,118.6,118.52,47.6387]
[1644298209082,51.96804242,118.6,118.52,47.6387]
[1644298213186,51.96804242,118.6,118.53,45.35191818]
[1644298213387,49.86028693,118.6,118.53,45.37591818]
[1644298215200,49.86028693,118.6,118.53,45.62591818]
[1644298215403,51.96804242,118.6,118.53,0.024]
[1644298215702,51.96804242,118.6,118.52,47.8887]
[1644298216401,51.96804242,118.6,118.52,47.6387]
[1644298216802,51.96804242,118.6,118.52,0.024]
[1644298217002,51.96804242,118.6,118.47,24.6329]
[1644298217205,74.91004242,118.6,118.48,0.024]
[1644298217603,12.6625,118.56,118.48,0.024]
[1644298217804,40.8664671,118.55,118.48,0.024]
[1644298218006,42.97422259,118.55,118.47,24.6329]
[1644298218208,2.10775549,118.54,118.47,0.024]
[1644298218408,2.10775549,118.54,118.42,36.8613]
[1644298218409,33.26465549,118.54,118.43,24.3961]
[1644298218606,33.26465549,118.54,118.43,30.3961]
[1644298218806,2.10775549,118.53,118.43,30.3961]
[1644298219208,48.69151171,118.52,118.43,30.3961]
[1644298219408,48.69151171,118.52,118.43,6.024]
[1644298219707,42.96452929,118.5,118.43,0.024]
[1644298219908,42.96452929,118.5,118.43,6.0]
[1644298220110,42.96452929,118.5,118.44,37.5386932]
[1644298220710,42.96452929,118.5,118.43,6.024]
[1644298220711,55.62992929,118.5,118.43,6.024]
[1644298220911,55.62992929,118.5,118.43,0.024]
[1644298221109,55.62992929,118.5,118.43,6.0]
[1644298221309,55.62992929,118.5,118.43,6.024]
[1644298221709,55.62992929,118.5,118.43,52.4815258]
[1644298223710,55.62992929,118.5,118.43,6.024]
[1644298223912,55.62992929,118.5,118.43,0.024]
[1644298224111,55.62992929,118.5,118.43,6.0]
[1644298224311,57.73768478,118.5,118.43,6.024]
[1644298224613,69.90768478,118.5,118.43,0.024]
[1644298224810,69.90768478,118.5,118.43,47.12846053]
[1644298225212,69.90768478,118.5,118.43,47.15246053]
[1644298225613,69.90768478,118.5,118.43,6.024]
[1644298226018,79.43668478,118.5,118.43,0.024]
[1644298226214,79.43668478,118.5,118.42,0.024]
[1644298226614,79.43668478,118.5,118.41,34.73384942]
[1644298226813,79.43668478,118.5,118.42,0.024]
[1644298227213,69.90768478,118.5,118.42,0.024]
[1644298228115,26.94315549,118.5,118.42,0.024]
[1644298228316,12.6654,118.5,118.42,0.024]
[1644298229216,46.08961903,118.49,118.42,0.024]
[1644298229416,68.0,118.48,118.38,11.5566937]
[1644298229617,4.41165625,118.38,118.31,51.34421672]
[1644298229817,4.41165625,118.38,118.31,48.97079891]
[1644298230216,39.03835691,118.38,118.31,48.97079891]
[1644298230416,39.03835691,118.38,118.32,47.69247738]
[1644298231126,4.41165625,118.38,118.32,47.69247738]
[1644298232522,42.2506,118.45,118.32,58.31147738]
[1644298232820,12.17,118.43,118.32,64.31147738]
[1644298233020,12.17,118.43,118.32,58.31147738]
[1644298233219,36.15633332,118.42,118.32,58.31147738]
[1644298233420,12.17,118.41,118.32,47.69247738]
[1644298233821,30.98366011,118.41,118.32,47.69247738]
[1644298234721,18.81366011,118.4,118.32,47.94247738]
[1644298234919,30.98366011,118.4,118.32,47.94247738]